Cogmind - Beta 9.2 @@@ ROGUE MODE // 2019.11.25 @ 15:30:13 Player: Alexbot Result: Destroyed by RD-P0Q(z) with Zionite Laser-S Performance ------------- Evolutions (3) 1500 Regions Visited (10) 2000 Robots Destroyed (128) 640 Value Destroyed (2858) 2858 Prototype IDs (24) 480 Alien Tech Used (0) 0 Bonus (1149) 1149 TOTAL SCORE: 8627 Bonus ------- High Alert Combat Kills 90 Follower Combat Kills 177 Aligned with FarCom 300 Met Imprinter 300 Was Imprinted 300 Friendly Fire -18 Cogmind --------- Core Integrity 0/700 Matter 300/300 Energy 99/100 System Corruption 4% Temperature Cool (9) Movement Core (50) Location -7/Deep Caves Parts ------- > --- POWER (1) -------- (None) > --- PROPULSION (4) --- (None) > --- UTILITY (6) ------ Improved Signal Interpreter > --- WEAPON (2) ------- Makeshift Spear > --- INVENTORY (4) ---- Makeshift Power Source Improved Utility Shielding Proton Missile Launcher Heavy Rocket Launcher Peak State ------------ > --- POWER ------------ Reinforced Ion Engine > --- PROPULSION ------- Cooled Airjet Cooled Airjet Cooled Airjet Combat Airjet > --- UTILITY ---------- Coolant Injector Large Storage Unit Large Storage Unit Large Storage Unit Large Storage Unit Improved Medium Armor Plating > --- WEAPON ----------- Heavy Particle Cannon Field Lobotomy Kit > --- INVENTORY -------- Micro Nuclear Core Xenon Bombardment Thruster Xenon Bombardment Thruster Xenon Bombardment Thruster Xenon Bombardment Thruster Large Storage Unit Compact Matter Pod Advanced Sensor Array Improved Signal Interpreter Makeshift Terrain Scanner Makeshift Terrain Scan Processor Improved Medium Armor Plating Hardlight Generator Makeshift System Shield System Backup Module Improved Trap Extractor YOLO Cannon Gauss Cannon Gauss Cannon Gauss Cannon AWS/Autocannon Proton Missile Launcher Heavy Rocket Launcher Precision Grenade Launcher Katana [Rating: 60] Favorites ----------- Power Reinforced Ion Engine Engine Reinforced Ion Engine Power Core Light Nuclear Core Propulsion Cooled Airjet Treads Improved Treads Wheel Compact Wheel Hover Unit Cooled Airjet Flight Unit Xenon Bombardment Thruster Utility Large Storage Unit Device Improved Heat Sink Storage Large Storage Unit Processor Improved Signal Interpreter Protection Improved Medium Armor Plating Weapon Assault Rifle Energy Gun Particle Gun Energy Cannon Heavy Particle Cannon Ballistic Gun Assault Rifle Ballistic Cannon Gauss Cannon Launcher Precision Grenade Launcher Special Weapon Field Lobotomy Kit Slashing Weapon Katana Piercing Weapon Makeshift Spear Build | -11 -10 -10 -10 -9 -8 -7 -7 -7 -7 -7 ------- Run | Scr Mat Min Exi Min Mat Fac Low Low Zio Dee Slots Evolved 6 | . . . . . 4 2 . . . . Power . | . . . . . . . . . . . Propulsion 2 | . . . . . . 2 . . . . Utility 4 | . . . . . 4 . . . . . Weapon . | . . . . . . . . . . . Parts Attached 74 | 6 3 1 5 3 10 12 10 4 20 . Power 4 | 1 1 . . . . . . . 2 . Engine 2 | 1 1 . . . . . . . . . Core 2 | . . . . . . . . . 2 . Reactor . | . . . . . . . . . . . Propulsion 18 | 2 2 . 2 . 2 4 2 . 4 . Treads 6 | . 2 . 2 . 2 . . . . . Leg . | . . . . . . . . . . . Wheel 2 | 2 . . . . . . . . . . Hover 6 | . . . . . . 4 2 . . . Flight 4 | . . . . . . . . . 4 . Utility 16 | 1 . 1 2 . 4 1 2 . 5 . Device 5 | . . 1 . . 1 . 1 . 2 . Storage 5 | 1 . . 2 . 2 . . . . . Processor 2 | . . . . . . 1 . . 1 . Hackware . | . . . . . . . . . . . Protection 4 | . . . . . 1 . 1 . 2 . Artifact . | . . . . . . . . . . . Weapon 36 | 2 . . 1 3 4 7 6 4 9 . Energy Gun 5 | 1 . . 1 2 1 . . . . . Energy Cannon 8 | . . . . . 1 2 3 2 . . Ballistic Gun 1 | 1 . . . . . . . . . . Ballistic Cannon 5 | . . . . . 2 2 . . 1 . Launcher 11 | . . . . . . 3 3 2 3 . Special Weapon 3 | . . . . 1 . . . . 2 . Impact Weapon . | . . . . . . . . . . . Slashing Weapon 1 | . . . . . . . . . 1 . Piercing Weapon 2 | . . . . . . . . . 2 . Special Melee Weapon . | . . . . . . . . . . . Unidentified Prototypes 2 | . . . . . . 2 . . . . Parts Lost 23 | . . . . 1 1 . 2 . 19 . Power 3 | . . . . . . . . . 3 . Propulsion 9 | . . . . . . . 2 . 7 . Utility 4 | . . . . . . . . . 4 . Weapon 7 | . . . . 1 1 . . . 5 . Highest Loss Streak 6 | . . . . 1 1 . 2 . 6 . Average Slot Usage (%) 84 | . 84 96 99 99 87 96 98 100 65 15 Engine 8 | . 14 14 14 14 9 7 7 7 3 . Treads 12 | . 23 28 28 28 18 1 . . . . Hover 9 | . . . . . . 26 28 30 14 . Device 4 | . . 10 5 . 7 7 7 7 3 . Storage 21 | . 14 14 22 28 27 30 30 30 16 . Processor 1 | . . . . . . 4 1 . 3 7 Protection 3 | . . . . . 7 2 5 7 6 . Energy Gun 6 | . 14 14 14 15 10 . . . . . Energy Cannon 2 | . . . . . . 5 6 6 3 . Ballistic Gun 5 | . 14 14 14 12 . . . . . . Ballistic Cannon 2 | . . . . . 6 6 7 7 . . Piercing Weapon 1 | . . . . . . . . . 4 7 Naked Turns . | . . . . . . . . . . . Heaviest Build 96 | 13 18 19 47 47 92 91 95 95 96 2 Greatest Support 79 | 26 46 46 46 46 46 76 79 61 61 3 Greatest Overweight (x) 3 | . . . 1 1 1 3 2 1 3 . Average Overweight (x) . | . . . . 1 1 1 1 1 1 . Largest Inventory Capacity 28 | 6 6 6 16 16 28 28 28 28 28 4 Average Capacity 16 | 5 6 6 11 16 22 28 28 28 16 4 Most Carried 28 | 4 6 6 14 16 22 28 28 28 28 4 Average Carried 15 | 2 5 6 9 15 18 26 26 27 16 4 Final Capacity 28 | 6 6 6 16 16 28 28 28 28 4 4 Final Carried 28 | 4 6 6 14 16 22 28 27 28 4 4 Class Distribution -------------------- 55% | Mutant 39% | Hauler-Mutant 3% | Messiah-Mutant Dominant Class ---------------- Mutant | -10/Materials Mutant | -10/Mines Mutant | -10/Exiles Mutant | -9/Mines Hauler-Mutant | -8/Materials Hauler-Mutant | -7/Factory Hauler-Mutant | -7/Lower Caves Hauler-Mutant | -7/Lower Caves Mutant | -7/Zion Mutant | -7/Deep Caves Resources | -11 -10 -10 -10 -9 -8 -7 -7 -7 -7 -7 ----------- Run | Scr Mat Min Exi Min Mat Fac Low Low Zio Dee Matter Collected 2126 | 200 144 43 . 105 234 278 238 124 741 19 Remotely . | . . . . . . . . . . . Salvage Created 2614 | . 193 186 . 226 311 399 201 187 858 53 Parts 254 | . 21 13 . 18 16 39 16 12 109 10 Haulers Intercepted . | . . . . . . . . . . . Recyclers Shooed 1 | . 1 . . . . . . . . . Parts Field Recycled . | . . . . . . . . . . . Retrieved Matter . | . . . . . . . . . . . Parts Self-Destructed 27 | . . . . . . . 15 12 . . Prevented . | . . . . . . . . . . . Kills | -11 -10 -10 -10 -9 -8 -7 -7 -7 -7 -7 ------- Run | Scr Mat Min Exi Min Mat Fac Low Low Zio Dee Combat Hostiles Destroyed 64 | . 5 7 . 8 7 14 12 6 5 . Guns 24 | . 5 5 . 8 6 . . . . . Cannons 7 | . . . . . 1 2 2 1 1 . AOE 33 | . . 2 . . . 12 10 5 4 . Classes Destroyed 15 | . 3 1 . 2 2 3 . . 3 1 Worker 1 | . . 1 . . . . . . . . Tunneler 1 | . . . . . . 1 . . . . Recycler 1 | . . . . . 1 . . . . . Watcher 3 | . 2 . . . . 1 . . . . Swarmer 29 | . 3 5 . 4 4 4 9 . . . Grunt 16 | . 2 2 . 2 . 6 . 4 . . Brawler 2 | . . . . . . 2 . . . . Duelist 2 | . . . . 1 . . . 1 . . Sentry 5 | . . . . . 3 1 1 . . . Demolisher 1 | . . . . 1 . . . . . . Programmer 4 | . . . . . . 1 2 1 . . Zionite 51 | . . . . . . . . . 51 . Z-Technician 4 | . . . . . . . . . . 4 Tinkerer 3 | . . . . . . . . . 3 . Mutant 5 | . . . . . . . . . 5 . Best Kill Streak 11 | . 3 3 . 5 4 7 5 3 11 4 Combat Bots Only 6 | . 3 3 . 5 4 6 5 3 4 . Max Kills in Single Turn 4 | . 1 2 . 2 1 3 4 2 2 1 Gunslinging 1 | . . . . 1 . . . . . . Exploded 4 | . . 2 . . . 3 4 2 2 . Melee . | . . . . . . . . . . . Uniques/NPCs Destroyed 2 | . . . . . . . . . 2 . Imprinter (-7/Zion) 12-ASH (-7/Zion) Combat | -11 -10 -10 -10 -9 -8 -7 -7 -7 -7 -7 -------- Run | Scr Mat Min Exi Min Mat Fac Low Low Zio Dee Damage Taken 4030 | . 143 135 . 403 188 300 452 30 2321 58 Core 860 | . 51 22 . 71 8 34 14 . 602 58 Absorbed by Shields . | . . . . . . . . . . . Core Remaining (%) 80 | 100 . . . 42 98 . . . . . Volleys Fired 174 | . 18 11 . 14 16 23 10 7 75 . Largest 2 | . 2 2 . 2 2 2 2 2 1 . Hottest 123 | . 60 60 . 105 121 123 123 123 75 . Shots Fired 245 | . 36 22 . 27 32 32 16 8 72 . Gun 114 | . 36 22 . 26 30 . . . . . Cannon 61 | . . . . . 2 20 12 2 25 . Launcher 65 | . . . . . . 12 4 6 43 . Special 5 | . . . . 1 . . . . 4 . Kinetic 64 | . 18 11 . 10 2 11 6 1 5 . Thermal 73 | . . . . 13 24 9 6 1 20 . Explosive 65 | . . . . . . 12 4 6 43 . Electromagnetic 38 | . 18 11 . 3 6 . . . . . Robot Hit Streak 24 | . 5 5 . 10 24 6 11 14 12 . Robot Miss Streak 5 | . 2 1 . 1 2 5 1 2 3 . Penetration Max . | . . . . . . . . . . . Secondary Targets 4 | . . 1 . 3 . . . . . . Max Gunslinging Chain 1 | . . 1 . 1 . . . . . . Shots Hit Robots 209 | . 20 16 . 21 25 16 11 4 90 6 Core Hits 185 | . 9 9 . 14 12 32 18 11 76 4 Critical Hits 4 | . . . . . 1 1 . . 2 . Critical Kills 3 | . . . . . 1 1 . . 1 . Critical Parts Destroyed 1 | . . . . . . . . . 1 . Melee Attacks 71 | . . . . . . . . . 65 6 Impact . | . . . . . . . . . . . Slashing 12 | . . . . . . . . . 12 . Piercing 59 | . . . . . . . . . 53 6 Sneak Attacks 10 | . . . . . . . . . 4 6 Combat Hostiles . | . . . . . . . . . . . Follow-up Attacks 2 | . . . . . . . . . 2 . Damage Inflicted 9777 | . 239 260 . 331 405 1672 927 670 4723 550 Guns 1125 | . 239 214 . 331 341 . . . . . Cannons 1111 | . . . . . 30 292 284 31 474 . Explosions 5477 | . . 46 . . 23 1380 643 639 2746 . Melee 2053 | . . . . . . . . . 1503 550 Ramming 11 | . . . . . 11 . . . . . Kinetic 785 | . 69 79 . 107 30 167 178 31 124 . Thermal 1165 | . . 46 . 184 295 184 106 . 350 . Explosive 5349 | . . . . . . 1321 643 639 2746 . Electromagnetic 414 | . 170 135 . 40 69 . . . . . Impact . | . . . . . . . . . . . Slashing 276 | . . . . . . . . . 276 . Piercing 1777 | . . . . . . . . . 1227 550 Highest Corruption 4 | . . . . . . 2 2 2 4 4 Average Corruption 3 | . . . . . . 2 2 2 3 4 Corruption Purged . | . . . . . . . . . . . Effects 49 | . . . . . . 4 1 1 41 2 Message Errors 9 | . . . . . . 2 . . 7 . Matter Fused 8 | . . . . . . . . . 8 . Heat Flow Errors 9 | . . . . . . 1 1 . 6 1 Energy Discharges 8 | . . . . . . 1 . . 7 . Data Loss (minor) 6 | . . . . . . . . 1 4 1 Targeting Errors 6 | . . . . . . . . . 6 . Weapon Failures 3 | . . . . . . . . . 3 . Overload Shots . | . . . . . . . . . . . Overflow Damage 341 | . . . . . 8 50 27 3 158 95 Projectiles 53 | . . . . . . 19 27 . 7 . Explosions 139 | . . . . . 8 31 . 3 97 . Melee 149 | . . . . . . . . . 54 95 Knockbacks 1 | . . . . . . . 1 . . . Impact . | . . . . . . . . . . . Kinetic 1 | . . . . . . . 1 . . . Secondary . | . . . . . . . . . . . Self-Inflicted Damage 256 | . . . . . 39 . 50 . 167 . Shots 6 | . . . . . 1 . 1 . 4 . Rammed 1 | . . . . . 1 . . . . . Targets Rammed 1 | . . . . . 1 . . . . . Kicked . | . . . . . . . . . . . Crushed . | . . . . . . . . . . . Highest Temperature 241 | . 84 36 . 204 126 93 90 12 241 95 Average Temperature 55 | . 35 16 . 71 39 14 42 8 87 61 Received Heat Transfer 450 | . 24 51 . 48 27 129 45 18 90 18 Siege Activations . | . . . . . . . . . . . Robots Corrupted . | . . . . . . . . . . . Combat Hostiles . | . . . . . . . . . . . Parts Fried 2 | . 2 . . . . . . . . . Impact Corruptions . | . . . . . . . . . . . Robots Melted . | . . . . . . . . . . . Combat Hostiles . | . . . . . . . . . . . Parts Melted 4 | . . . . 1 1 . . . 2 . Heat Transferred 2111 | . . 50 . 444 716 235 148 . 518 . Parts Sabotaged . | . . . . . . . . . . . Parts Stolen . | . . . . . . . . . . . Parts Stripped . | . . . . . . . . . . . Power Chain Reactions 2 | . . 1 . . 1 . . . . . Missiles Intercepted . | . . . . . . . . . . . Alert | -11 -10 -10 -10 -9 -8 -7 -7 -7 -7 -7 ------- Run | Scr Mat Min Exi Min Mat Fac Low Low Zio Dee Peak Influence 349 | . 154 189 . 140 302 349 . . . . Average Influence 102 | . 34 84 . 47 174 168 . . . . Maximum Alert Level 1 | . . . . . 1 1 . . . . Low Security (%) 86 | 100 100 100 . 100 74 59 . . . . Level 1 13 | . . . . . 25 40 . . . . Level 2 . | . . . . . . . . . . . Level 3 . | . . . . . . . . . . . Level 4 . | . . . . . . . . . . . Level 5 . | . . . . . . . . . . . High Security . | . . . . . . . . . . . Max Security . | . . . . . . . . . . . Squads Dispatched 4 | . . . . 1 . 3 . . . . Investigation . | . . . . . . . . . . . Extermination 1 | . . . . . . 1 . . . . Reinforcement 3 | . . . . 1 . 2 . . . . Assault . | . . . . . . . . . . . Garrison . | . . . . . . . . . . . Intercept . | . . . . . . . . . . . Construction Impeded 2 | . . . . 1 . 1 . . . . Haulers Reinforced . | . . . . . . . . . . . Stealth | -11 -10 -10 -10 -9 -8 -7 -7 -7 -7 -7 --------- Run | Scr Mat Min Exi Min Mat Fac Low Low Zio Dee Distress Signals 4 | . 1 . . . 1 2 . . . . Communications Jammed . | . . . . . . . . . . . Distress Signals . | . . . . . . . . . . . Times Spotted 164 | . 9 9 . 16 15 18 16 7 68 6 Peak Tracking Total 7 | . 4 3 . 5 5 7 4 3 5 6 Tactical Retreats 15 | . . . . 3 1 . . 1 10 . Traps | -11 -10 -10 -10 -9 -8 -7 -7 -7 -7 -7 ------- Run | Scr Mat Min Exi Min Mat Fac Low Low Zio Dee Traps Triggered . | . . . . . . . . . . . Indirectly . | . . . . . . . . . . . Trap Hack Attempts . | . . . . . . . . . . . Triggered . | . . . . . . . . . . . Disarmed . | . . . . . . . . . . . Reprogrammed . | . . . . . . . . . . . Reused . | . . . . . . . . . . . Traps Extracted . | . . . . . . . . . . . Installed . | . . . . . . . . . . . Triggered 1 | . . . . . . . 1 . . . Machines | -11 -10 -10 -10 -9 -8 -7 -7 -7 -7 -7 ---------- Run | Scr Mat Min Exi Min Mat Fac Low Low Zio Dee Machines Disabled 11 | . . . . . 3 3 1 . 3 1 Max in Single Turn 2 | . . . . . . 2 1 . 1 . Garrison Access 1 | . . . . . . 1 . . . . Machines Sabotaged . | . . . . . . . . . . . Garrisons Compromised . | . . . . . . . . . . . Overloaded Fab Kills . | . . . . . . . . . . . Fab Network Shutdowns . | . . . . . . . . . . . Hacking | -11 -10 -10 -10 -9 -8 -7 -7 -7 -7 -7 --------- Run | Scr Mat Min Exi Min Mat Fac Low Low Zio Dee Machines Accessed 7 | . . . 1 . 1 2 2 . 1 . Terminals 2 | . . . . . 1 1 . . . . Fabricators . | . . . . . . . . . . . Repair Stations . | . . . . . . . . . . . Recycling Units . | . . . . . . . . . . . Scanalyzers . | . . . . . . . . . . . Garrison Access 1 | . . . . . . 1 . . . . Total Hacks 12 | . . . 1 . 3 2 5 . 1 . Successful 9 | . . . 1 . 1 1 5 . 1 . Failed 3 | . . . . . 2 1 . . . . Catastrophic 2 | . . . . . 1 1 . . . . Database Lockouts . | . . . . . . . . . . . Manual 7 | . . . 1 . 1 1 . . 4 . Terminals 4 | . . . . . 3 1 . . . . Fabricators . | . . . . . . . . . . . Repair Stations . | . . . . . . . . . . . Recycling Units . | . . . . . . . . . . . Scanalyzers . | . . . . . . . . . . . Garrison Access 1 | . . . . . . 1 . . . . Terminal Hacks 8 | . . . 1 . 1 . 5 . 1 . Record 4 | . . . . . . . 4 . . . Part Schematic 1 | . . . . . . . . . 1 . Open Door 1 | . . . . . . . 1 . . . Emergency Access Points 1 | . . . . . 1 . . . . . EX-Prototype ID Bank 1 | . . . 1 . . . . . . . Fabricator Hacks . | . . . . . . . . . . . Repair Station Hacks . | . . . . . . . . . . . Recycling Unit Hacks . | . . . . . . . . . . . Scanalyzer . | . . . . . . . . . . . Garrison Access Hacks 1 | . . . . . . 1 . . . . Seal Access 1 | . . . . . . 1 . . . . Unauthorized Hacks 2 | . . . . . 1 1 . . . . Terminals . | . . . . . . . . . . . Fabricators . | . . . . . . . . . . . Repair Stations . | . . . . . . . . . . . Recycling Units . | . . . . . . . . . . . Scanalyzers . | . . . . . . . . . . . Garrison Access . | . . . . . . . . . . . Data Cores Recovered 1 | . . . . . 1 . . . . . Used . | . . . . . . . . . . . Hacking Detections 2 | . . . . . 1 1 . . . . Full Trace Events . | . . . . . . . . . . . Feedback Events . | . . . . . . . . . . . Feedback Blocked . | . . . . . . . . . . . Robot Schematics Acquired . | . . . . . . . . . . . Robots Built . | . . . . . . . . . . . Matter . | . . . . . . . . . . . Time . | . . . . . . . . . . . Total Robot Build Rating . | . . . . . . . . . . . Part Schematics Acquired 1 | . . . . . . . . . 1 . Parts Built . | . . . . . . . . . . . Matter . | . . . . . . . . . . . Time . | . . . . . . . . . . . Total Part Build Rating . | . . . . . . . . . . . Parts Repaired . | . . . . . . . . . . . Time . | . . . . . . . . . . . Parts Recycled . | . . . . . . . . . . . Recycled Matter . | . . . . . . . . . . . Retrieved Matter . | . . . . . . . . . . . Retrieved Components . | . . . . . . . . . . . Parts Scanalyzed . | . . . . . . . . . . . Part Schematics Acquired . | . . . . . . . . . . . Parts Damaged . | . . . . . . . . . . . Bothacking | -11 -10 -10 -10 -9 -8 -7 -7 -7 -7 -7 ------------ Run | Scr Mat Min Exi Min Mat Fac Low Low Zio Dee Used RIF Installer . | . . . . . . . . . . . Robots Hacked . | . . . . . . . . . . . Non-combat . | . . . . . . . . . . . Combat . | . . . . . . . . . . . Robot Hacks Applied . | . . . . . . . . . . . Relay Couplers Released . | . . . . . . . . . . . Robots Rewired 1 | . . . . . . 1 . . . . Allies Hacked . | . . . . . . . . . . . Hacks Repelled . | . . . . . . . . . . . Allies | -11 -10 -10 -10 -9 -8 -7 -7 -7 -7 -7 -------- Run | Scr Mat Min Exi Min Mat Fac Low Low Zio Dee Total Allies 10 | . . 2 . 1 . 1 . . 6 . Largest Group 4 | . . 2 1 1 1 1 . . 4 2 Highest-Rated Group 148 | . . 43 31 34 34 16 . . 148 146 Highest-Rated Ally 73 | . . 31 31 34 34 16 . . 73 73 Total Orders . | . . . . . . . . . . . Ally Attacks 51 | . . 7 . 7 4 4 . . 25 4 Total Damage 2234 | . . 128 . 511 279 47 . . 1033 236 Kills 21 | . . 2 . 6 3 1 . . 6 3 Allies Corrupted . | . . . . . . . . . . . Allies Melted . | . . . . . . . . . . . Field Lobotomies 3 | . . . . 1 . . . . 2 . Intel | -11 -10 -10 -10 -9 -8 -7 -7 -7 -7 -7 ------- Run | Scr Mat Min Exi Min Mat Fac Low Low Zio Dee Robot Analysis Total . | . . . . . . . . . . . Derelict Logs Recovered 7 | . . . . 2 . . 1 1 3 . Drone Launches . | . . . . . . . . . . . Drone Recoveries . | . . . . . . . . . . . Exploration | -11 -10 -10 -10 -9 -8 -7 -7 -7 -7 -7 ------------- Run | Scr Mat Min Exi Min Mat Fac Low Low Zio Dee Turns Passed 6539 | 53 459 620 907 623 561 619 266 339 1985 107 Spaces Moved 4281 | 46 267 357 507 281 251 496 213 289 1405 169 Core 770 | 4 . . . . . . . . 597 169 Treads 1639 | . 201 357 507 281 251 42 . . . . Legs . | . . . . . . . . . . . Wheels 108 | 42 66 . . . . . . . . . Hover 1697 | . . . . . . 454 213 289 741 . Flight 67 | . . . . . . . . . 67 . Fastest Speed 31 | 50 90 160 160 180 180 82 91 107 31 50 Average Speed 127 | 86 142 160 171 180 180 104 105 107 106 50 Slowest Speed 290 | 100 160 160 180 180 180 226 162 107 290 50 Overloaded Moves 23 | . . . . . . 19 4 . . . Propulsion Burnouts . | . . . . . . . . . . . Robots Hopped . | . . . . . . . . . . . Cave-ins Triggered . | . . . . . . . . . . . Exploration Rate (%) 47 | 4 47 76 62 70 27 19 40 54 90 32 Regions Visited 10 Branch Regions 7 Pre-discovered Areas 2 | . . . . . . . . . 2 . Known Exits Taken 2 | . . . . . . 1 . . 1 . Unknown Exits Taken 8 | 1 1 1 1 1 1 . 1 1 . . Scrap Searched 7 | . . . . . . . 2 2 3 . Spaces Dug 2 | . . . . . . . . . 2 . Terrain Destroyed 229 | . . . . . 6 98 28 49 48 . Melee . | . . . . . . . . . . . Projectile 2 | . . . . . . 2 . . . . AOE 227 | . . . . . 6 96 28 49 48 . Actions | -11 -10 -10 -10 -9 -8 -7 -7 -7 -7 -7 --------- Run | Scr Mat Min Exi Min Mat Fac Low Low Zio Dee Total 5044 | 55 313 383 549 370 328 567 235 309 1750 185 Wait 323 | . 10 15 20 68 32 5 . 7 156 10 Move 4271 | 45 266 356 506 280 250 495 212 288 1404 169 Hop . | . . . . . . . . . . . Pick Up 58 | 4 6 . 10 4 12 13 2 2 5 . Fast Attach 28 | 6 3 1 1 . 4 7 . . 6 . Attach 19 | . . . . 1 3 1 3 . 11 . Detach 18 | . 3 . 1 . 2 5 1 . 6 . Swap 27 | . . . 4 2 3 4 7 4 3 . Drop 56 | . 7 . 7 1 5 12 . 1 23 . Fire 174 | . 18 11 . 14 16 23 10 7 75 . Melee 67 | . . . . . . . . . 61 6 Ram . | . . . . . . . . . . . Kick . | . . . . . . . . . . . Crush 1 | . . . . . 1 . . . . . Escape Stasis . | . . . . . . . . . . . Rewire 2 | . . . . . . 2 . . . . Trap . | . . . . . . . . . . . Miscellaneous . | . . . . . . . . . . . Route ------- -11/Scrapyard -10/Materials (discovered 2 exits: [*Mat] / [*Min]) -10/Mines (discovered 3 exits: [*Mat x2] / *Exi) -10/Exiles -9/Mines -8/Materials -7/Factory -7/Lower Caves -7/Lower Caves (discovered 2 exits: [*Fac] / *Zio) -7/Zion (discovered 2 exits: *Dee / [*Pro]) -7/Deep Caves History --------- Turn | Location | Event 23 | -11/Scrapyard | Discovered new exit (range 15) 54 | -11/Scrapyard | Entered Materials 161 | -10/Materials | Discovered new exit (range 3) 307 | -10/Materials | Build established: Mutant 493 | -10/Materials | Discovered new exit (range 7) 513 | -10/Materials | Entered Mines 638 | -10/Mines | Discovered new exit (range 10) 977 | -10/Mines | Discovered new exit (range 7) 1119 | -10/Mines | Deemed a non-threat by the Exiles lab entrance 1119 | -10/Mines | Discovered new exit (range 5) 1133 | -10/Mines | Entered Exiles 1133 | -10/Exiles | Accompanied by 1 ally 1163 | -10/Exiles | Led the pair of lost Derelicts to a safe place 1173 | -10/Exiles | Met 8R-AWN 1218 | -10/Exiles | Met EX-HEX 1279 | -10/Exiles | Met EX-BIN 1297 | -10/Exiles | Aligned with FarCom system 1298 | -10/Exiles | Given EX-Vault access code 1335 | -10/Exiles | Opened EX-Vault 1356 | -10/Exiles | Found Field Lobotomy Kit 1360 | -10/Exiles | Found AWS/Autocannon 1372 | -10/Exiles | Found YOLO Cannon 1406 | -10/Exiles | Warned to stay clear of 0b10 Research branches 1456 | -10/Exiles | Met EX-DEC 1859 | -10/Exiles | Discovered new exit (range 12) 2040 | -10/Exiles | Stole three prototypes: YOLO Cannon, AWS/Autocannon, Field Lobotomy Kit 2040 | -10/Exiles | Entered Mines 2088 | -9/Mines | A weapon hastily lodged in a ceiling crevice suddenly fell to the ground 2323 | -9/Mines | Received a Rocket Launcher from a helpful Derelict 2452 | -9/Mines | Learned Materials terminal intel 2592 | -9/Mines | Assembled infested the area 2605 | -9/Mines | Assimilated D-53 Grenadier with FLK Orb 2606 | -9/Mines | Core integrity fell below 50% 2637 | -9/Mines | Discovered new exit (range 11) 2663 | -9/Mines | Entered Materials 2663 | -8/Materials | Accompanied by 1 ally 2663 | -8/Materials | Evolved 4 slots: Utility x4 2664 | -8/Materials | Loaded intel: 12 terminal locations 2971 | -8/Materials | Build established: Hauler-Mutant 3124 | -8/Materials | Discovered new exit (range 9) 3224 | -8/Materials | Entered Factory 3224 | -7/Factory | Evolved 2 slots: Propulsion x2 3225 | -7/Factory | Identified exit to Lower Caves 3226 | -7/Factory | FarCom data flow suspended 3843 | -7/Factory | Entered Lower Caves 3928 | -7/Lower Caves | Learned location of 1 exit from Factory 3928 | -7/Lower Caves | Learned Research stockpile data 3928 | -7/Lower Caves | Learned Factory terminal intel 3928 | -7/Lower Caves | Learned Extension garrison access intel 4089 | -7/Lower Caves | Discovered new exit (range 15) 4109 | -7/Lower Caves | Entered another Lower Caves area 4109 | -7/Lower Caves | Discovered new exit (range 6) 4156 | -7/Lower Caves | Learned Factory interactive machine intel 4423 | -7/Lower Caves | Discovered new exit (range 15) 4448 | -7/Lower Caves | Entered Zion 4493 | -7/Zion | Received a visual enhancement algorithm 4543 | -7/Zion | Discovered new exit (range 15) 4580 | -7/Zion | System corruption cleaned by Quarantine Array 4734 | -7/Zion | Learned location of Armory (-3) 4836 | -7/Zion | Imprinted 4838 | -7/Zion | Declared Zion's savior 5024 | -7/Zion | Learned Factory stockpile data 5052 | -7/Zion | Attacked by Zionites 5361 | -7/Zion | Lost 5 parts (1p1n1u2w) 5492 | -7/Zion | Lost 5 parts (1p2n1u1w) 5590 | -7/Zion | Spotted AR-TIW(B) 5612 | -7/Zion | Learned Factory garrison access intel 5627 | -7/Zion | Lost 6 parts (1p4n1u) 5687 | -7/Zion | Core integrity fell below 50% 5868 | -7/Zion | Build established: Mutant 5938 | -7/Zion | Spotted 48-41R(B) 5942 | -7/Zion | Assimilated AR-TIW(B) with FLK Orb 5945 | -7/Zion | Assimilated 48-41R(B) with FLK Orb 6056 | -7/Zion | Allies destroyed Imprinter 6083 | -7/Zion | Extracted access codes from Imprinter's data core 6124 | -7/Zion | 12-ASH came to Zion's defense 6126 | -7/Zion | Core integrity fell below 20% 6312 | -7/Zion | Opened final containment barrier to the Deep Caves 6343 | -7/Zion | Discovered new exit (range 5) 6345 | -7/Zion | Saw the warning signs outside the Deep Caves entrance 6348 | -7/Zion | Identified exit to Deep Caves 6433 | -7/Zion | Entered Deep Caves 6433 | -7/Deep Caves | Accompanied by 2 allies 6540 | -7/Deep Caves | Z-Facility disabled 6540 | -7/Deep Caves | Destroyed by RD-P0Q(z) with Zionite Laser-S Last Messages --------------- 06443_ as-33518 destroyed. 06463_ Acquired 18 matter. 06489_ System corrupted: Heat flow error (+129). 06494_ P4-RU7(o) is busy at the terminal. 06499_ Sneak attack on RM-K01(o). 06499_ RM-K01(o) destroyed. 06501_ Acquired 1 matter. 06504_ Sneak attack on P4-RU7(o). 06504_ Destroyed Lgt. Ion Engine. 06504_ Destroyed Hover Unit. 06505_ Sneak attack on P4-RU7(o). 06505_ P4-RU7(o) destroyed. 06509_ Sneak attack on WT-KF1(o). 06509_ WT-KF1(o) destroyed. 06510_ System corrupted: Component data lost. 06512_ Sneak attack on OM-TU5(o). 06512_ Destroyed Hover Unit. 06513_ Sneak attack on OM-TU5(o). 06513_ OM-TU5(o) destroyed. 06540_ Z-Facility disabled. Map ----- +----------------------------------------------------+ | | | | | | | | | | | | | | | | | | | | | | | | | | | | | | | ?????????????????????????????????????????????????? | | ?????????????????????????###############?????????? | | ??????????????????????#### ##????????? | | ?????????????????#???## #????##??? | | ?????????????????# ?## ###### ##? | | ????????????# ???# ## ## # #? | | ????????? ## z ## ## | | ????????? z z | | ???????? | | ???????? | | ???????? @ | | ???????? "" "" """""" | | ???????? """""""""""""" | | ????????? """""""""""""" | | ????????? """""""""""""" | | ?????????? """"""""""" | | ?????????? """""""""""""" | | ???????????? ??????""""""""" | | ???????????? ??????"""""""""" | | ?????????????? ? ???????"""""""""" | | ??????????????? ??????????""""" " " | | ?????????????????????????"""""""%!%! | | ?????????????????????????"""""" / / | | ?????????????????????????"""""""%/ | | ??????????????????????????""""""= | | ??????????????????????????"""""""" != | | ??????????????????????????""""""""""%= | | ??????????????????????????""" * | | ??????????????????????????""" """ | | ???????????????????????????"" """"" | | ???????????????????????????"" """"""" | | ???????????????????????????"" """"""" | | ???????????????????????????"" """"""" | | ?????????????????????????????? """"" | | ????????????????????????????? """ | +----------------------------------------------------+ Best States ------------- Heat Dissipation 48 Coolant Potential 65 Energy Generation 15 Energy Capacity 265 Matter Stores 300 Matter Capacity 300 Sight Range 22 Robot Scan Range 16 Terrain Scan Density 10 Armor Coverage 225 Utility Shielding 66 Evasion (%) 63 Recoil Reduction 2 Item Schematics ----------------- Tactical Coordination Suite | -7/Zion | Free Robot Schematics ------------------ None Fabricated ------------ Nothing Alien Tech Used ----------------- None Achievements -------------- None Challenges ------------ None Game ------ Seed AntimissilePhaseSegregator Manual? 0 Play Time 00:47:31 Cumulative 766.5 hours Start 2019.11.25 @ 13:37:37 End 2019.11.25 @ 15:30:13 Sessions 2 Manual Loads 0 Difficulty Rogue Special Mode None Game No. 215 Rogue 215 Adventurer 0 Explorer 0 Win Type - Total 40 Types 31/0/2/3/2/1/1 Lore% 96 Gallery% 98 Achievement% 94 Wizard Run 0 Options --------- ASCII 0 Keyboard 1 Movement Numpad Keybinds 0 Fullscreen 1 Font 18/SmallcapsGlow Map View 76x50 Tactical HUD 1 Map Filters NONE Filters NONE Steam 1 RUN: 68511f77-5da4-4256-ac03-22cd0426eb04